lending/lending_fUSD_20240202
["ID","MTS","AMOUNT","RATE_DAILY","PERIOD"]
[313158824,1706832008875,2000000.0,0.0002,120]
[313158825,1706832011578,275.8930555,0.00022449,2]
[313158826,1706832013788,296.3448738,0.000225,2]
[313158827,1706832019346,1040.50137786,0.00022449,2]
[313158828,1706832021551,243.18075265,0.000225,2]
[313158829,1706832023042,177.99,0.00021773,2]
[313158830,1706832023448,177.99,0.00021833,2]
[313158831,1706832023480,344.2850896,0.000225,2]
[313158832,1706832023510,177.99,0.00021893,2]
[313158833,1706832023691,177.99,0.00021953,2]
[313158834,1706832024020,177.99,0.00022012,2]
[313158835,1706832024433,177.99,0.00022072,2]
[313158836,1706832024662,177.99,0.00022132,2]
[313158837,1706832025178,177.99,0.00022191,2]
[313158838,1706832025318,177.99,0.00022251,2]
[313158839,1706832025593,177.99,0.00022311,2]
[313158840,1706832025801,177.99,0.00022371,2]
[313158841,1706832026215,177.99,0.0002243,2]
[313158842,1706832026428,177.99,0.0002249,2]
[313158843,1706832027150,982997.91744856,0.00023,120]
[313158844,1706832027181,10000.0,0.00023,120]
[313158845,1706832027207,10000.0,0.00023,120]
[313158846,1706832027233,15702.08255144,0.00023,120]
[313158847,1706832027446,1259.83989749,0.000225,2]
[313158848,1706832038111,24415.68133648,0.000225,2]
[313158849,1706832039059,23900.0,0.00021599,2]
[313158850,1706832040377,636.2,0.00021599,2]
[313158851,1706832057562,69173.30779594,0.00022,2]
[313158852,1706832057587,143964.44040338,0.00022,2]
[313158853,1706832057609,1098004.00393157,0.00022,2]
[313158854,1706832057635,688858.24786911,0.00022,2]
[313158855,1706832057664,167.84431035,0.00022413,2]
[313158856,1706832062591,167.84431027,0.00022424,2]
[313158857,1706832063481,134004.34443905,0.00022,120]
[313158858,1706832063504,175000.0,0.00022,120]
[313158859,1706832063551,441317.93542857,0.00022,120]
[313158860,1706832063583,5000.0,0.00022,120]
[313158861,1706832063605,550000.0,0.00022,120]
[313158862,1706832063648,694677.72013238,0.00022,120]
[313158863,1706832067136,865.21014175,0.00022448,2]
[313158864,1706832067584,167.84431027,0.00022435,2]
[313158865,1706832069104,-2634.0,0.00022501,2]
[313158866,1706832071730,187.6,0.0001966,2]
[313158867,1706832072070,187.6,0.00021924,2]
[313158868,1706832072598,167.84431027,0.00022446,2]
[313158869,1706832074981,-5000.0,0.00022501,2]
[313158870,1706832076489,-5000.0,0.00022501,2]
[313158871,1706832077005,1000.0,0.00021578,2]
[313158872,1706832077601,167.84431027,0.00022457,2]
[313158873,1706832079685,33458.04314514,0.000225,2]
[313158874,1706832082590,167.84431027,0.00022468,2]
[313158875,1706832084766,3959.980118,0.00022323,2]
[313158876,1706832087581,167.84431027,0.00022479,2]
[313158877,1706832092587,167.84431027,0.0002249,2]
[313158878,1706832095476,66333.0,0.0002,120]
[313158879,1706832095511,5000.0,0.00022486,2]
[313158880,1706832097835,167.84431027,0.00022501,2]
[313158881,1706832102366,45455.81761442,0.0002,120]
[313158882,1706832102390,10000.0,0.0002,120]
[313158883,1706832102416,98142.00172546,0.0002,120]
[313158884,1706832102439,100000.0,0.0002,120]
[313158885,1706832102459,550000.0,0.0002,120]
[313158886,1706832102479,550000.0,0.0002,120]
[313158887,1706832102504,100000.0,0.0002,120]
[313158888,1706832102529,543858.40667349,0.0002,120]
[313158889,1706832102559,1000.0,0.0002,120]
[313158890,1706832102578,1543.77398663,0.0002,120]
[313158891,1706832102607,829.96443153,0.000225,2]
[313158892,1706832110686,943.24199569,0.000225,2]
[313158893,1706832114847,282.21611749,0.000225,2]
[313158894,1706832122731,548456.22601337,0.00022501,120]
[313158895,1706832122751,206543.77398663,0.00022501,120]
[313158896,1706832150308,262917.29738878,0.00022421,2]
[313158897,1706832150333,196319.28971122,0.00022421,2]
[313158898,1706832174090,2294.2619,0.00022404,2]
[313158899,1706832193020,731.5288,0.00022449,2]
[313158900,1706832197354,282.21611749,0.000225,2]
[313158901,1706832198727,27756.6926,0.00022448,2]
[313158902,1706832209470,526.12903496,0.00022449,2]
[313158903,1706832214465,526.12903496,0.00022481,2]
[313158904,1706832229419,2500.0,0.00022448,2]
[313158905,1706832235254,3666.018,0.00022421,2]
[313158906,1706832273869,282.21611749,0.000225,2]
[313158907,1706832278497,786.74,0.00021731,2]
[313158908,1706832292616,757.05887404,0.00022449,2]
[313158909,1706832365396,2428.9975,0.00022449,2]
[313158910,1706832397941,180649.9443,0.00022449,2]
[313158911,1706832444764,526.12903496,0.00022449,2]
[313158912,1706832448065,155.74,0.00021725,2]
[313158913,1706832448297,155.74,0.00021886,2]
[313158914,1706832448644,155.74,0.00022048,2]
[313158915,1706832448719,155.74,0.0002221,2]
[313158916,1706832448925,155.74,0.00022372,2]
[313158917,1706832449727,526.12903496,0.00022487,2]
[313158918,1706832471535,530.16,0.00021559,2]
[313158919,1706832496793,308.43,0.00021561,2]
[313158920,1706832514016,168.84,0.00019641,2]
[313158921,1706832514359,168.84,0.00021905,2]
[313158922,1706832552018,75175.0,0.00022324,2]
[313158923,1706832561602,200.0,0.00021559,2]
[313158924,1706832575255,150.0,0.00021537,2]
[313158933,1706832632303,-415.50518176,0.00022501,2]
[313158935,1706832632313,-167.84431027,0.00022512,2]
[313158937,1706832632323,-1772.22004087,0.00022513,2]
[313158938,1706832632332,-757.05887402,0.00022513,2]
[313158939,1706832632341,-1192.46395615,0.00022518,2]
[313158940,1706832632351,-1146.15439356,0.00022521,2]
[313158941,1706832632362,-358.97557567,0.00022521,2]
[313158942,1706832632374,-13828.22707705,0.00022521,2]
[313158943,1706832632385,-13184.33706182,0.00022521,2]
[313158944,1706832632397,-167.84431027,0.00022522,2]
[313158945,1706832632407,-155.74,0.00022533,2]
[313158946,1706832632417,-167.84431027,0.00022533,2]
[313158947,1706832632426,-1761.74226894,0.00022533,2]
[313158948,1706832632439,-5339.13773106,0.00022533,2]
[313158949,1706832632449,-7510.45,0.00022533,2]
[313158950,1706832632458,-845.12,0.00022533,2]
[313158951,1706832632468,-176.87,0.00022533,2]
[313158952,1706832632478,-3308.75824519,0.00022538,2]
[313158953,1706832632487,-832.64808491,0.00022539,2]
[313158954,1706832632497,-167.84431027,0.00022544,2]
[313158955,1706832632507,-330.9142419,0.00022545,2]
[313158956,1706832632517,-707.90617777,0.00022545,2]
[313158957,1706832632526,-292.59208088,0.00022546,2]
[313158958,1706832632535,-323.94236833,0.00022546,2]
[313158959,1706832632544,-2104.8513,0.00022546,2]
[313158960,1706832632554,-166.69253359,0.00022547,2]
[313158961,1706832632563,-606.14076086,0.00022547,2]
[313158965,1706832632750,-929.94153038,0.00022547,2]
[313158966,1706832632760,-334.1340822,0.00022547,2]
[313158967,1706832632770,-800.0,0.00022548,2]
[313158968,1706832632779,-400.0,0.00022548,2]
[313158969,1706832632789,-874.8296,0.00022548,10]
[313158970,1706832632798,-244.08127203,0.00022548,2]
[313158971,1706832632807,-292884.80791214,0.00022549,2]
[313158972,1706832632819,-3820.07583061,0.00022549,2]
[313158973,1706832632833,-2381.71050512,0.00022549,2]
[313158974,1706832632845,-1271.24,0.00022549,2]
[313158975,1706832632857,-3180.47485478,0.00022549,2]
[313158976,1706832632868,-340.40155357,0.00022549,2]
[313158977,1706832632888,-275.77891219,0.00022549,2]
[313158978,1706832632900,-849.73624576,0.00022549,2]
[313158979,1706832632911,-10480.14992872,0.00022549,2]
[313158980,1706832632928,-225250.91546326,0.00022549,2]
[313158981,1706832632944,-287.75294492,0.00022549,2]
[313158982,1706832639132,-561.2699,0.00022549,2]
[313158983,1706832639144,-333.4011,0.00022549,2]
[313158984,1706832639156,-1048.6173871,0.00022549,2]
[313158985,1706832639292,-825.57805478,0.00022549,2]
[313158986,1706832639304,-17555.54002448,0.00022549,2]
[313158987,1706832639316,-498617.61690453,0.00022549,2]
[313158988,1706832639326,-15075.909,0.00022549,2]
[313158989,1706832639335,-443.27087566,0.00022549,10]
[313158990,1706832639345,-448186.36874017,0.0002255,2]
[313158991,1706832639355,-167.84431027,0.00022555,2]
[313158992,1706832639365,-215.12757545,0.00022562,2]
[313158993,1706832639375,-167.84431027,0.00022566,2]
[313158994,1706832639384,-167.84431027,0.00022577,2]
[313158995,1706832639396,-757.05887402,0.00022578,2]
[313158996,1706832639406,-426.29807876,0.00022585,2]
[313158997,1706832639416,-272.64981738,0.00022585,2]
[313158998,1706832639427,-487.84228146,0.00022585,2]
[313158999,1706832639437,-624.06311545,0.00022585,2]
[313159000,1706832639447,-2664.85836799,0.00022585,2]
[313159001,1706832639457,-1244.1137027,0.00022585,2]
[313159002,1706832639467,-509.46071659,0.00022585,2]
[313159003,1706832639476,-156.85528426,0.00022585,2]
[313159004,1706832639485,-310.6842223,0.00022585,2]
[313159005,1706832639495,-275.98706944,0.00022585,2]
[313159006,1706832639505,-503.04226375,0.00022585,2]
[313159007,1706832639515,-3828.48490855,0.00022586,2]
[313159008,1706832639525,-207.49720552,0.00022587,2]
[313159009,1706832639534,-353.17177551,0.00022587,2]
[313159010,1706832639548,-831.61927221,0.00022587,2]
[313159011,1706832639558,-186.69496292,0.00022587,2]
[313159012,1706832639567,-199.03575703,0.00022587,2]
[313159013,1706832639577,-259.70462571,0.00022587,2]
[313159014,1706832639587,-155.43158686,0.00022587,2]
[313159015,1706832639596,-392.87874065,0.00022587,2]
[313159016,1706832639606,-155.67536418,0.00022587,2]
[313159017,1706832639615,-432.75226238,0.00022587,2]
[313159018,1706832639625,-201.26906544,0.00022587,2]
[313159019,1706832639634,-155.0,0.00022587,2]
[313159020,1706832639645,-241.07606728,0.00022587,2]
[313159021,1706832639654,-3234.95429051,0.00022587,2]
[313159022,1706832639663,-157.73561839,0.00022587,2]
[313159023,1706832639673,-524.26850226,0.00022587,2]
[313159024,1706832639682,-157.49371138,0.00022587,2]
[313159025,1706832639692,-294.02403229,0.00022587,2]
[313159026,1706832639701,-155.0744322,0.00022587,2]
[313159027,1706832639711,-233.3484501,0.00022587,2]
[313159028,1706832639720,-1122.12658466,0.00022587,2]
[313159029,1706832639729,-172.02741418,0.00022587,2]
[313159030,1706832639738,-155.54125996,0.00022587,2]
[313159031,1706832639748,-246.91049352,0.00022587,2]
[313159032,1706832639757,-315.18305531,0.00022587,2]
[313159033,1706832639767,-155.0,0.00022587,2]
[313159034,1706832639776,-164.30232967,0.00022587,2]
[313159035,1706832639785,-269.95069429,0.00022587,2]
[313159036,1706832639795,-967.43524386,0.00022587,2]
[313159037,1706832639804,-155.78698594,0.00022587,2]
[313159038,1706832639815,-228.3602233,0.00022587,2]
[313159039,1706832639824,-155.46065038,0.00022587,2]
[313159040,1706832639834,-156.62849969,0.00022587,2]
[313159041,1706832639843,-410.45065952,0.00022587,2]
[313159042,1706832639853,-228.83453251,0.00022587,2]
[313159043,1706832639862,-157.53276897,0.00022587,2]
[313159044,1706832639875,-2137.33040402,0.00022587,2]
[313159045,1706832639884,-459.14279187,0.00022588,2]
[313159046,1706832639895,-167.84431027,0.00022588,2]
[313159047,1706832639904,-2151.72993286,0.00022589,2]
[313159048,1706832639914,-634.4781,0.00022593,2]
[313159049,1706832639923,-500.0,0.00022593,2]
[313159050,1706832639932,-1000.0,0.00022593,2]
[313159051,1706832639942,-384.4123,0.00022593,2]
[313159052,1706832639952,-167.84431027,0.00022599,2]
[313159053,1706832639963,-167.84431027,0.0002261,2]
[313159054,1706832639973,-167.84431027,0.00022621,2]
[313159055,1706832639983,-757.05887402,0.00022642,2]
[313159056,1706832639993,-449.66200753,0.0002268,2]
[313159057,1706832640002,-17877.68197193,0.00022681,2]
[313159058,1706832640012,-200.0,0.00022691,2]
[313159059,1706832640021,-179.0,0.00022691,2]
[313159060,1706832640031,-202.76099161,0.00022691,2]
[313159061,1706832640041,-155.35453074,0.00022691,2]
[313159062,1706832640051,-365.220922,0.00022691,2]
[313159063,1706832640060,-204.8999602,0.00022691,2]
[313159064,1706832640069,-163.46760489,0.00022691,2]
[313159065,1706832640079,-241.28019223,0.00022691,2]
[313159066,1706832640088,-164.03979717,0.00022691,2]
[313159067,1706832640098,-218.50762658,0.00022691,2]
[313159068,1706832640107,-189.97646564,0.00022691,2]
[313159069,1706832640117,-502.24649867,0.00022691,2]
[313159070,1706832640126,-245.51995102,0.00022691,2]
[313159071,1706832640135,-729.23912561,0.00022691,2]
[313159072,1706832640146,-196.95281856,0.00022691,2]
[313159073,1706832640155,-155.19324296,0.00022691,2]
[313159074,1706832640165,-155.0,0.00022691,2]
[313159075,1706832640174,-160.05964323,0.00022691,2]
[313159076,1706832640184,-3329.35169132,0.00022691,2]
[313159077,1706832640193,-1070.78652453,0.00022691,2]
[313159078,1706832640202,-164.99634728,0.00022691,2]
[313159079,1706832640215,-155.0,0.00022691,2]
[313159080,1706832640225,-155.45202334,0.00022691,2]
[313159081,1706832640235,-3635.02589497,0.00022691,2]
[313159082,1706832640244,-2909.36169139,0.00022691,2]
[313159083,1706832640253,-157.45566465,0.00022691,2]
[313159084,1706832640262,-156.69236853,0.00022692,2]
[313159085,1706832640272,-328.0424,0.00022693,2]
[313159086,1706832640281,-270.7643,0.00022693,2]
[313159087,1706832640291,-155.74,0.00022695,2]
[313159088,1706832640300,-55915.75430262,0.000227,2]
[313159089,1706832640310,-757.05887402,0.00022707,2]
[313159090,1706832640319,-432.36280918,0.00022713,2]
[313159091,1706832640328,-693.66758524,0.00022713,2]
[313159092,1706832640338,-189.57,0.00022721,2]
[313159093,1706832640347,-757.05887402,0.00022771,2]
[313159094,1706832640358,-5000.0,0.000228,2]
[313159095,1706832640367,-432.36280917,0.00022807,2]
[313159096,1706832640377,-693.66758523,0.00022807,2]
[313159097,1706832640387,-757.05887402,0.00022836,2]
[313159098,1706832640397,-155.74,0.00022857,2]
[313159099,1706832640406,-832.64808491,0.0002289,2]
[313159100,1706832640417,-348.1296,0.000229,2]
[313159101,1706832640427,-9575.5784,0.000229,2]
[313159102,1706832640437,-107180.4938,0.000229,2]
[313159103,1706832640448,-170.64346148,0.000229,2]
[313159104,1706832640457,-152.42900128,0.000229,2]
[313159105,1706832640466,-757.05887402,0.000229,2]
[313159106,1706832640476,-432.36280917,0.000229,2]
[313159107,1706832640486,-693.66758523,0.000229,2]
[313159108,1706832640496,-421.49290051,0.00022987,2]
[313159109,1706832640505,-832.64808491,0.0002299,2]
[313159110,1706832640515,-155.0,0.00022998,2]
[313159111,1706832640526,-413.22910588,0.00022998,2]
[313159112,1706832640535,-159.87613246,0.00022999,2]
[313159113,1706832640545,-391.25037465,0.00022999,2]
[313159114,1706832640554,-500.0,0.00022999,2]
[313159115,1706832640563,-432.04161212,0.00022999,2]
[313159116,1706832640572,-487.00839025,0.00022999,2]
[313159117,1706832640582,-500.0,0.00022999,2]
[313159118,1706832640591,-500.0,0.00022999,2]
[313159119,1706832640601,-500.0,0.00022999,2]
[313159120,1706832640611,-395.11183287,0.00022999,2]
[313159121,1706832640620,-500.0,0.00022999,2]
[313159122,1706832640630,-500.0,0.00022999,2]
[313159123,1706832640639,-500.0,0.00022999,2]
[313159124,1706832640650,-500.0,0.00022999,2]
[313159125,1706832640660,-550.0,0.00022999,2]
[313159126,1706832640669,-373.58465014,0.00022999,2]
[313159127,1706832640679,-500.0,0.00022999,2]
[313159128,1706832640688,-500.0,0.00022999,2]
[313159129,1706832640697,-500.0,0.00022999,2]
[313159130,1706832640707,-500.0,0.00022999,2]
[313159131,1706832640716,-443.27087567,0.00022999,10]
[313159132,1706832640725,-500.0,0.00022999,2]
[313159133,1706832640736,-500.0,0.00022999,2]
[313159134,1706832640745,-500.0,0.00022999,2]
[313159135,1706832640754,-500.0,0.00022999,2]
[313159136,1706832640763,-500.0,0.00022999,2]
[313159137,1706832640773,-500.0,0.00022999,2]
[313159138,1706832640782,-254.84911828,0.00022999,2]
[313159140,1706832640792,-500.0,0.00022999,2]
[313159142,1706832640801,-500.0,0.00022999,2]
[313159143,1706832640810,-500.0,0.00022999,2]
[313159144,1706832640819,-500.0,0.00022999,2]
[313159145,1706832640830,-500.0,0.00022999,2]
[313159146,1706832640839,-500.0,0.00022999,2]
[313159147,1706832640848,-500.0,0.00022999,2]
[313159148,1706832640858,-500.0,0.00022999,2]
[313159149,1706832640867,-298.41268816,0.00022999,2]
[313159150,1706832640876,-500.0,0.00022999,2]
[313159151,1706832640885,-500.0,0.00022999,2]
[313159152,1706832640894,-370.47489107,0.00023,3]
[313159153,1706832640903,-16767595.65588615,0.00023,2]
[313159154,1706832640912,-5123408.62543791,0.00023,2]
[313159155,1706832640938,-725.83012372,0.00023,2]
[313159156,1706832640949,-741.27723955,0.00023,2]
[313159157,1706832640962,-420.8888349,0.00023,2]
[313159158,1706832640978,-25904.81922801,0.00023,2]
[313159159,1706832641585,-765.28357809,0.00023,2]
[313159166,1706832643339,-2132.53146534,0.00023,2]
[313159167,1706832643498,-11186.20906966,0.00023,2]
[313159168,1706832643511,-437.0874517,0.00023,2]
[313159169,1706832643556,-2195.40318454,0.00023,2]
[313159170,1706832643612,-1101.39593114,0.00023,2]
[313159171,1706832645997,433501.3079,0.00022449,2]
[313159172,1706832646354,-285667.22419433,0.00023,2]
[313159173,1706832646364,-150.01,0.00023,2]
[313159174,1706832646373,-150.0,0.00023063,2]
[313159175,1706832646527,-150.0,0.00023063,2]
[313159176,1706832646536,-150.0,0.00023063,2]
[313159177,1706832646545,-150.0,0.00023063,2]
[313159178,1706832646555,-150.0,0.00023063,2]
[313159179,1706832646564,-150.0,0.00023063,2]
[313159180,1706832646573,-150.0,0.00023063,2]
[313159181,1706832646582,-184.45233854,0.00023063,2]
[313159182,1706832646591,-150.0,0.00023063,2]
[313159183,1706832646601,-150.0,0.00023063,2]
[313159184,1706832646610,-257.09013407,0.00023063,2]
[313159185,1706832646619,-347.73672192,0.0002313,2]
[313159186,1706832646628,-530.16,0.00023203,2]
[313159187,1706832646637,-384.87,0.00023673,2]
[313159188,1706832646646,-189.57,0.00023803,2]
[313159189,1706832646655,-201.73516107,0.00024,2]
[313159190,1706832646664,-263.94731272,0.000241,2]
[313159191,1706832646673,-168.84,0.00024169,2]
[313159192,1706832646682,-200.0,0.00024254,2]
[313159193,1706832646692,-1000.0,0.00024275,2]
[313159194,1706832646701,-176.15015525,0.000243,2]
[313159195,1706832646710,-2948.0,0.000243,2]
[313159196,1706832646720,-6046.1,0.00024384,2]
[313159197,1706832646729,-586.36,0.00024384,2]
[313159198,1706832646738,-11204.0,0.000244,2]
[313159199,1706832646748,-384.87,0.0002451,2]
[313159200,1706832646757,-250.0,0.00024658,2]
[313159201,1706832646766,-10000.0,0.00024658,2]
[313159202,1706832646775,-530.16,0.00024847,2]
[313159203,1706832646784,-189.57,0.00024885,2]
[313159204,1706832646793,-202.63807571,0.00025,2]
[313159205,1706832646802,-1588.56278984,0.00025,2]
[313159206,1706832646811,-304.42296087,0.00025,2]
[313159207,1706832646820,-936.38551018,0.00025,2]
[313159208,1706832646829,-2320.50679205,0.00025,2]
[313159209,1706832646838,-167.89104996,0.00025,2]
[313159210,1706832646847,-1905.32780822,0.00025,2]
[313159211,1706832646856,-159.19838367,0.00025,2]
[313159212,1706832646865,-450.0,0.00025,3]
[313159213,1706832646874,-535.76936104,0.00025,2]
[313159214,1706832646882,-384.87,0.00025348,2]
[313159215,1706832646891,-189.57,0.00025967,2]
[313159216,1706832646901,-150.0,0.00026079,2]
[313159217,1706832646910,-384.87,0.00026185,2]
[313159218,1706832646919,-168.84,0.00026433,2]
[313159219,1706832646927,-530.16,0.0002649,2]
[313159220,1706832646936,-200.0,0.00026949,2]
[313159221,1706832646946,-1000.0,0.00026973,2]
[313159222,1706832646956,-500.0,0.00027,3]
[313159223,1706832646965,-384.87,0.00027022,2]
[313159224,1706832646976,-155.0,0.00027397,2]
[313159225,1706832646985,-5552.52897729,0.00027397,2]
[313159226,1706832646994,-1689.75,0.00027397,2]
[313159227,1706832647005,-25565.09,0.00027397,2]
[313159228,1706832647015,-500.0,0.000274,2]
[313159229,1706832647024,-1689.75,0.00027541,2]
[313159230,1706832647033,-25565.09,0.00027556,2]
[313159231,1706832647042,-1689.75,0.00027686,2]
[313159232,1706832647051,-25565.09,0.00027714,2]
[313159233,1706832647060,-1689.75,0.0002783,2]
[313159234,1706832647069,-384.87,0.00027859,2]
[313159235,1706832647079,-25565.09,0.00027872,2]
[313159236,1706832647089,-1689.75,0.00027974,2]
[313159237,1706832647098,-688.94136572,0.00028,2]
[313159238,1706832647107,-29415.27199841,0.00028,2]
[313159239,1706832647120,-4168.7569479,0.00028,2]
[313159240,1706832647132,-6803.07556095,0.00028,2]
[313159241,1706832647143,-2067.30774244,0.00028,2]
[313159242,1706832647156,-5781.88633881,0.00028,2]
[313159243,1706832647167,-813.05,0.00028,2]
[313159244,1706832647179,-6797.03632056,0.00028,2]
[313159245,1706832647188,-600.59057378,0.0002803,2]
[313159246,1706832647200,-910.07126,0.0002803,2]
[313159247,1706832647211,-3389.87690034,0.0002803,2]
[313159248,1706832647222,-2309.32890359,0.0002803,2]
[313159249,1706832647234,-4330.9910218,0.0002803,2]
[313159250,1706832647245,-506.70909012,0.0002803,2]
[313159251,1706832647277,-7848.45057756,0.0002803,2]
[313159252,1706832647288,-366.49928082,0.0002803,2]
[313159253,1706832647301,-5302.57239199,0.0002803,2]
[313159254,1706832647309,-1689.75,0.00028118,2]
[313159255,1706832647318,-530.16,0.00028134,2]
[313159256,1706832647327,-4560.59953014,0.00028189,2]
[313159257,1706832647339,-13252.97645321,0.00028189,2]
[313159258,1706832647364,39361.9193,0.00022449,2]
[313159259,1706832648211,-585.29156686,0.000229,2]
[313159260,1706832648220,-58.68735492,0.00028189,2]
[313159271,1706832657933,9734.7174,0.00022449,2]
[313159272,1706832671484,100000.0,0.00022449,2]
[313159273,1706832674603,245000.0,0.00022449,2]
[313159274,1706832725012,3624.15,0.00022449,2]
[313159275,1706832771834,216.95,0.00021561,2]
[313159276,1706832772177,163.7683,0.00022449,2]
[313159277,1706833748598,168.04177027,0.00022471,2]
[313159286,1706833831554,-155.0,0.00022564,2]
[313159287,1706833831563,-203.90995019,0.00022565,2]
[313159288,1706833831574,-920.31895963,0.00022565,2]
[313159289,1706833831583,-62.6797039,0.00022565,2]
[313159290,1706833831595,-221.5074656,0.00022565,2]
[313159291,1706833831604,-2042.32702788,0.00022566,5]
[313159292,1706833831630,-5084.84299456,0.00022566,5]
[313159293,1706833831640,-150.0,0.00022566,2]
[313159294,1706833831650,-1857.71613245,0.00022567,2]
[313159295,1706833831659,-999.99,0.00023,2]
[313159296,1706833831669,-517.26,0.00023,2]
[313159297,1706833831678,-150.01,0.00023,2]
[313159298,1706833831687,-207.78,0.00023627,2]
[313159299,1706833831697,-201.73516107,0.00024,2]
[313159300,1706833831706,-499.99,0.000243,2]
[313159301,1706833831715,-9999.99,0.000243,2]
[313159302,1706833831725,-1156.97529009,0.000243,4]
[313159303,1706833831734,-13565.0,0.000243,2]
[313159304,1706833831743,-3095.0,0.000243,2]
[313159305,1706833831752,-6387.23,0.000243,2]
[313159306,1706833831762,-349.65,0.00024384,2]
[313159307,1706833831772,-758.36,0.00024658,2]
[313159308,1706833831785,-171.0,0.00024823,2]
[313159309,1706833831795,-534.66585262,0.00025,2]
[313159310,1706833831805,-450.0,0.00025,3]
[313159311,1706833831814,-159.19838367,0.00025,2]
[313159312,1706833831826,-304.42296087,0.00025,2]
[313159313,1706833831836,-1588.56278984,0.00025,2]
[313159314,1706833831846,-167.89104996,0.00025411,2]
[313159316,1706833831856,-202.63807571,0.00025412,2]
[313159317,1706833831866,-936.38551018,0.00025413,2]
[313159319,1706833831876,-155.0,0.00025434,2]
[313159321,1706833831885,-194.66,0.00025466,2]
[313159322,1706833831895,-488.63,0.00025495,2]
[313159323,1706833831904,-250.0,0.00025641,2]
[313159324,1706833831913,-207.78,0.00025891,2]
[313159325,1706833831923,-266.11,0.00026025,2]
[313159326,1706833831933,-250.0,0.0002603,2]
[313159327,1706833831943,-150.0,0.00026079,2]
[313159328,1706833831953,-266.11,0.00026096,2]
[313159329,1706833831963,-266.11,0.00026168,2]
[313159330,1706833831973,-266.11,0.00026239,2]
[313159331,1706833831983,-266.11,0.0002631,2]
[313159332,1706833831993,-266.11,0.00026382,2]
[313159333,1706833832004,-266.11,0.00026453,2]
[313159334,1706833832013,-189.57,0.00026501,2]
[313159335,1706833832022,-2320.50679205,0.00026508,2]
[313159336,1706833832032,-10000.0,0.0002651,2]
[313159337,1706833832041,-250.0,0.0002651,2]
[313159338,1706833832050,-2000.0,0.0002651,2]
[313159339,1706833832060,-504.23,0.0002651,2]
[313159340,1706833832071,-266.11,0.00026524,2]
[313159341,1706833832080,-1000.0,0.00026538,2]
[313159342,1706833832090,-266.11,0.00026596,2]
[313159343,1706833832100,-266.11,0.00026667,2]
[313159344,1706833832109,-663.17595373,0.00026679,2]
[313159345,1706833832118,-266.11,0.00026738,2]
[313159346,1706833832127,-323.84015861,0.0002678,2]
[313159347,1706833832137,-6143.83,0.00026801,2]
[313159348,1706833832147,-266.11,0.0002681,2]
[313159349,1706833832156,-266.11,0.00026881,2]
[313159350,1706833832166,-266.11,0.00026953,2]
[313159351,1706833832176,-500.0,0.00027,3]
[313159352,1706833832187,-266.11,0.00027024,2]
[313159353,1706833832195,-266.11,0.00027095,2]
[313159354,1706833832205,-1818.64,0.00027123,2]
[313159355,1706833832216,-266.11,0.00027167,2]
[313159356,1706833832226,-266.11,0.00027238,2]
[313159357,1706833832236,-266.11,0.00027309,2]
[313159358,1706833832246,-266.11,0.00027381,2]
[313159359,1706833832255,-525.10655608,0.00027394,2]
[313159360,1706833832264,-233.77336351,0.00027394,2]
[313159361,1706833832273,-4532.58010404,0.00027394,2]
[313159362,1706833832283,-162.62327812,0.00027395,2]
[313159363,1706833832294,-315.05678162,0.00027395,2]
[313159364,1706833832303,-1044.4038042,0.00027395,2]
[313159365,1706833832313,-760.79247499,0.00027395,2]